Workbook

Sheet Budsjett for 18 perioder
B1: firmabudsjett
G2: STARTDATO | H2: 2011-01-01 | I2: PERIODLENGDE (I DAGER) | K2: 14 | L2: SLUTTDATO | M2: =TEXT(T5,"dd.mm.åååå") -> 26.08.2012
C5: =UPPER(TEXT(H2,"dd-mmm")) -> 01-JAN | D5: =UPPER(TEXT(C5+Dagintervall,"dd-mmm")) -> 15-JAN | E5: 29-JAN | F5: 12-FEB | G5: 26-FEB | H5: 11-MAR | I5: 25-MAR | J5: 08-APR | K5: 22-APR | L5: 06-MAI | M5: 20-MAI | N5: 03-JUN | O5: 17-JUN | P5: 01-JUL | Q5: 15-JUL | R5: 29-JUL | S5: 12-AUG | T5: 26-AUG | U5: TOTALT | V5: TREND
B6: NETTOINNTEKT | C6: =Inntektstabell[[#Totals],[Uke 1]]-Utgiftstabell[[#Totals],[Uke 1]] -> kr 1,750.00 | D6: =Inntektstabell[[#Totals],[Uke 2]]-Utgiftstabell[[#Totals],[Uke 2]] -> kr 2,236.00 | E6: =Inntektstabell[[#Totals],[Uke 3]]-Utgiftstabell[[#Totals],[Uke 3]] -> kr 1,442.00 | F6: =Inntektstabell[[#Totals],[Uke 4]]-Utgiftstabell[[#Totals],[Uke 4]] -> kr 2,253.00 | G6: =Inntektstabell[[#Totals],[Uke 5]]-Utgiftstabell[[#Totals],[Uke 5]] -> kr 1,533.00 | H6: =Inntektstabell[[#Totals],[Uke 6]]-Utgiftstabell[[#Totals],[Uke 6]] -> kr 1,086.00 | I6: =Inntektstabell[[#Totals],[Uke 7]]-Utgiftstabell[[#Totals],[Uke 7]] -> kr 1,594.00 | J6: =Inntektstabell[[#Totals],[Uke 8]]-Utgiftstabell[[#Totals],[Uke 8]] -> 0 | K6: =Inntektstabell[[#Totals],[Uke 9]]-Utgiftstabell[[#Totals],[Uke 9]] -> 0 | L6: =Inntektstabell[[#Totals],[Uke 10]]-Utgiftstabell[[#Totals],[Uke 10]] -> 0 | M6: =Inntektstabell[[#Totals],[Uke 11]]-Utgiftstabell[[#Totals],[Uke 11]] -> 0 | N6: =Inntektstabell[[#Totals],[Uke 12]]-Utgiftstabell[[#Totals],[Uke 12]] -> 0 | O6: =Inntektstabell[[#Totals],[Uke 13]]-Utgiftstabell[[#Totals],[Uke 13]] -> 0 | P6: =Inntektstabell[[#Totals],[Uke 14]]-Utgiftstabell[[#Totals],[Uke 14]] -> 0 | Q6: =Inntektstabell[[#Totals],[Uke 15]]-Utgiftstabell[[#Totals],[Uke 15]] -> 0 | R6: =Inntektstabell[[#Totals],[Uke 16]]-Utgiftstabell[[#Totals],[Uke 16]] -> 0 | S6: =Inntektstabell[[#Totals],[Uke 17]]-Utgiftstabell[[#Totals],[Uke 17]] -> 0 | T6: =Inntektstabell[[#Totals],[Uke 18]]-Utgiftstabell[[#Totals],[Uke 18]] -> 0 | U6: =Inntektstabell[[#Totals],[Totalt]]-Utgiftstabell[[#Totals],[Totalt]] -> kr 11,894.00
A8: inntekt
B9: INNTEKTSELEMENT 1 | C9: kr 3,000.00 | D9: kr 3,500.00 | E9: kr 2,978.00 | F9: kr 3,384.00 | G9: kr 2,858.00 | H9: kr 2,809.00 | I9: kr 3,220.00 | U9: =SUM(Inntektstabell[[#This Row],[Uke 1]:[Uke 18]]) -> kr 21,749.00
B10: INNTEKTSELEMENT 2 | C10: 1,150.00 | D10: 1,200.00 | E10: 1,144.00 | F10: 1,400.00 | G10: 1,358.00 | H10: 1,154.00 | I10: 1,245.00 | U10: =SUM( Inntektstabell[ [#This Row],[Uke 1]:[Uke 18] ]) -> 8,651.00
B11: INNTEKTSELEMENT 3 | C11: 300.00 | D11: 350.00 | E11: 392.00 | F11: 326.00 | G11: 381.00 | H11: 364.00 | I11: 315.00 | U11: =SUM( Inntektstabell[ [#This Row],[Uke 1]:[Uke 18] ]) -> 2,428.00
B12: TOTALE INNTEKTER | C12: =SUBTOTAL(109,Inntektstabell[Uke 1]) -> kr 4,450.00 | D12: =SUBTOTAL(109,Inntektstabell[Uke 2]) -> kr 5,050.00 | E12: =SUBTOTAL(109,Inntektstabell[Uke 3]) -> kr 4,514.00 | F12: =SUBTOTAL(109,Inntektstabell[Uke 4]) -> kr 5,110.00 | G12: =SUBTOTAL(109,Inntektstabell[Uke 5]) -> kr 4,597.00 | H12: =SUBTOTAL(109,Inntektstabell[Uke 6]) -> kr 4,327.00 | I12: =SUBTOTAL(109,Inntektstabell[Uke 7]) -> kr 4,780.00 | J12: =SUBTOTAL(109,Inntektstabell[Uke 8]) -> 0 | K12: =SUBTOTAL(109,Inntektstabell[Uke 9]) -> 0 | L12: =SUBTOTAL(109,Inntektstabell[Uke 10]) -> 0 | M12: =SUBTOTAL(109,Inntektstabell[Uke 11]) -> 0 | N12: =SUBTOTAL(109,Inntektstabell[Uke 12]) -> 0 | O12: =SUBTOTAL(109,Inntektstabell[Uke 13]) -> 0 | P12: =SUBTOTAL(109,Inntektstabell[Uke 14]) -> 0 | Q12: =SUBTOTAL(109,Inntektstabell[Uke 15]) -> 0 | R12: =SUBTOTAL(109,Inntektstabell[Uke 16]) -> 0 | S12: =SUBTOTAL(109,Inntektstabell[Uke 17]) -> 0 | T12: =SUBTOTAL(109,Inntektstabell[Uke 18]) -> 0 | U12: =SUBTOTAL(109,Inntektstabell[Totalt]) -> kr 32,828.00
A13: utgifter
A14: utgifter
B15: LØNNINGER | C15: kr 1,500.00 | D15: kr 1,577.00 | E15: kr 1,823.00 | F15: kr 1,529.00 | G15: kr 1,759.00 | H15: kr 1,947.00 | I15: kr 1,875.00 | U15: =SUM(Utgiftstabell[[#This Row],[Uke 1]:[Uke 18]]) -> kr 12,010.00
B16: LEIE | C16: 1,000.00 | D16: 1,000.00 | E16: 1,000.00 | F16: 1,000.00 | G16: 1,000.00 | H16: 1,000.00 | I16: 1,000.00 | U16: =SUM(Utgiftstabell[[#This Row],[Uke 1]:[Uke 18]]) -> 7,000.00
B17: ELEKTRISITET | C17: 40.00 | D17: 43.00 | E17: 40.00 | F17: 42.00 | G17: 45.00 | H17: 40.00 | I17: 42.00 | U17: =SUM(Utgiftstabell[[#This Row],[Uke 1]:[Uke 18]]) -> 292.00
B18: TELEFON | C18: 12.00 | D18: 11.00 | E18: 13.00 | F18: 14.00 | G18: 11.00 | H18: 15.00 | I18: 15.00 | U18: =SUM(Utgiftstabell[[#This Row],[Uke 1]:[Uke 18]]) -> 91.00
B19: INTERNETT | C19: 15.00 | D19: 15.00 | E19: 15.00 | F19: 15.00 | G19: 15.00 | H19: 15.00 | I19: 15.00 | U19: =SUM(Utgiftstabell[[#This Row],[Uke 1]:[Uke 18]]) -> 105.00
B20: VANN | C20: 11.00 | D20: 10.00 | E20: 13.00 | F20: 10.00 | G20: 13.00 | H20: 10.00 | I20: 12.00 | U20: =SUM(Utgiftstabell[[#This Row],[Uke 1]:[Uke 18]]) -> 79.00
B21: GASS | C21: 23.00 | D21: 27.00 | E21: 26.00 | F21: 27.00 | G21: 22.00 | H21: 29.00 | I21: 21.00 | U21: =SUM(Utgiftstabell[[#This Row],[Uke 1]:[Uke 18]]) -> 175.00
B22: AVFALLSHÅNDTERING | C22: 4.00 | D22: 4.00 | E22: 4.00 | F22: 4.00 | G22: 4.00 | H22: 4.00 | I22: 4.00 | U22: =SUM(Utgiftstabell[[#This Row],[Uke 1]:[Uke 18]]) -> 28.00
B23: KABEL-TV | C23: 10.00 | D23: 10.00 | E23: 10.00 | F23: 10.00 | G23: 10.00 | H23: 10.00 | I23: 10.00 | U23: =SUM(Utgiftstabell[[#This Row],[Uke 1]:[Uke 18]]) -> 70.00
B24: KONTORREKVISITA | C24: 25.00 | D24: 57.00 | E24: 68.00 | F24: 146.00 | G24: 125.00 | H24: 111.00 | I24: 132.00 | U24: =SUM(Utgiftstabell[[#This Row],[Uke 1]:[Uke 18]]) -> 664.00
B25: FORSIKRING | C25: 60.00 | D25: 60.00 | E25: 60.00 | F25: 60.00 | G25: 60.00 | H25: 60.00 | I25: 60.00 | U25: =SUM(Utgiftstabell[[#This Row],[Uke 1]:[Uke 18]]) -> 420.00
B26: TOTALE UTGIFTER | C26: =SUBTOTAL(109,Utgiftstabell[Uke 1]) -> kr 2,700.00 | D26: =SUBTOTAL(109,Utgiftstabell[Uke 2]) -> kr 2,814.00 | E26: =SUBTOTAL(109,Utgiftstabell[Uke 3]) -> kr 3,072.00 | F26: =SUBTOTAL(109,Utgiftstabell[Uke 4]) -> kr 2,857.00 | G26: =SUBTOTAL(109,Utgiftstabell[Uke 5]) -> kr 3,064.00 | H26: =SUBTOTAL(109,Utgiftstabell[Uke 6]) -> kr 3,241.00 | I26: =SUBTOTAL(109,Utgiftstabell[Uke 7]) -> kr 3,186.00 | J26: =SUBTOTAL(109,Utgiftstabell[Uke 8]) -> 0 | K26: =SUBTOTAL(109,Utgiftstabell[Uke 9]) -> 0 | L26: =SUBTOTAL(109,Utgiftstabell[Uke 10]) -> 0 | M26: =SUBTOTAL(109,Utgiftstabell[Uke 11]) -> 0 | N26: =SUBTOTAL(109,Utgiftstabell[Uke 12]) -> 0 | O26: =SUBTOTAL(109,Utgiftstabell[Uke 13]) -> 0 | P26: =SUBTOTAL(109,Utgiftstabell[Uke 14]) -> 0 | Q26: =SUBTOTAL(109,Utgiftstabell[Uke 15]) -> 0 | R26: =SUBTOTAL(109,Utgiftstabell[Uke 16]) -> 0 | S26: =SUBTOTAL(109,Utgiftstabell[Uke 17]) -> 0 | T26: =SUBTOTAL(109,Utgiftstabell[Uke 18]) -> 0 | U26: =SUBTOTAL(109,Utgiftstabell[Totalt]) -> kr 20,934.00
